bitfinex/quotes_ETHUSD_20260228
["timestamp","ask_amount","ask_price","bid_price","bid_amount"]
[1772270045205,2.62574148,1859.2,1858.1,2.55046408]
[1772270045404,1.34466437,1859.2,1858.1,1.34546041]
[1772270045706,1.28107711,1859.1,1857.9,1.34560525]
[1772270045911,1.34466437,1859.2,1858.0,1.20500367]
[1772270046477,1.34462915,1859.3,1858.0,1.20500367]
[1772270046676,1.34462915,1859.3,1858.3,1.20500367]
[1772270046905,1.34437513,1859.6,1858.5,1.20500367]
[1772270047082,1.753,1859.6,1858.5,1.20500367]
[1772270047504,0.001,1859.6,1858.5,1.20500367]
[1772270048706,1.28207711,1859.6,1858.4,1.34524321]
[1772270048912,1.34444743,1859.5,1858.3,5.38097287]
[1772270049077,1.28107711,1859.4,1858.3,5.38097287]
[1772270049278,3.03207711,1859.4,1858.2,4.05768382]
[1772270049711,1.28107711,1859.3,1858.2,4.05768382]
[1772270050219,1.34444743,1859.5,1858.1,6.5876557]
[1772270050220,1.28107711,1859.1,1858.1,1.34651853]
[1772270050930,1.34480903,1859.0,1858.1,0.0011]
[1772270051502,1.34479327,1859.1,1858.1,1.30498649]
[1772270051712,3.09379327,1859.1,1858.1,1.30498649]
[1772270051929,1.32603547,1859.4,1858.1,1.30498649]
[1772270052086,3.09342821,1859.6,1858.3,1.30388649]
[1772270052308,1.32603547,1859.5,1858.3,1.30388649]
[1772270052836,1.32603547,1859.5,1858.2,2.6448135]
[1772270053035,1.32603547,1859.5,1858.4,1.30388649]
[1772270053203,2.670484,1859.5,1858.4,1.30388649]
[1772270053397,1.32603547,1859.5,1858.4,1.30388649]
[1772270053598,1.34542632,1859.6,1858.4,1.30388649]
[1772270053599,0.001,1859.6,1858.4,1.30388649]
[1772270053913,1.34538126,1859.6,1858.4,1.30388649]
[1772270054301,2.67141673,1859.6,1858.4,1.30388649]
[1772270054503,1.32603547,1859.5,1858.3,1.34531561]
[1772270055027,1.34451973,1859.4,1858.3,1.34531561]
[1772270055429,1.747,1859.3,1858.3,1.34531561]
[1772270055631,1.32603547,1859.2,1858.3,1.34531561]
[1772270055969,1.32603547,1859.1,1858.1,1.3465098]
[1772270057331,2.6708445,1859.0,1858.1,0.0011]
[1772270057533,1.32603547,1858.9,1858.1,0.0011]
[1772270058242,3.07103547,1858.9,1858.1,0.0011]
[1772270058612,1.32603547,1858.9,1858.1,0.0011]
[1772270058807,3.07003547,1858.9,1858.1,0.0011]
[1772270059437,5.37869371,1859.2,1858.1,1.30498649]
[1772270059438,2.67075115,1859.2,1858.1,1.30498649]
[1772270059625,4.41475115,1859.2,1858.1,1.30498649]
[1772270059807,4.41375115,1859.2,1858.1,1.30498649]
[1772270060207,2.67075115,1859.2,1858.1,1.30498649]
[1772270060608,2.67075115,1859.2,1858.1,0.0011]
[1772270060609,1.32603547,1859.1,1858.1,0.0011]
[1772270061234,1.34488138,1858.9,1858.1,0.0011]
[1772270062339,3.08688138,1858.9,1858.1,0.0011]
[1772270062747,4.41291685,1858.9,1858.1,0.0011]
[1772270063249,2.67072628,1859.2,1858.2,1.345388]
[1772270063745,1.32603547,1859.1,1858.2,1.345388]
[1772270063921,3.06703547,1859.1,1858.2,1.345388]
[1772270064121,1.741,1859.1,1858.2,2.64927449]
[1772270064722,1.32603547,1859.0,1858.1,0.0011]
[1772270065233,1.34488138,1858.9,1858.1,0.0011]
[1772270065544,1.32603547,1858.8,1858.1,0.0011]
[1772270065733,1.32603547,1858.8,1858.0,0.0011]
[1772270066114,1.739,1858.7,1858.0,0.0011]
[1772270066721,1.32603547,1858.8,1858.0,0.0011]
[1772270066920,1.739,1858.7,1858.0,0.0011]
[1772270067119,1.738,1858.9,1858.0,0.0011]
[1772270067319,3.06403547,1858.9,1858.0,0.0011]
[1772270067530,1.738,1858.8,1858.0,1.34663283]
[1772270069073,2.67092561,1858.9,1857.5,1.30388649]
[1772270069074,1.32603547,1858.7,1857.5,1.30388649]
[1772270069361,1.737,1858.6,1857.5,1.30388649]
[1772270069562,1.34517083,1858.5,1857.6,1.34582256]
[1772270069857,3.08315301,1858.6,1857.6,1.34582256]
[1772270070359,1.34488138,1858.9,1857.7,1.30388649]
[1772270070527,1.32603547,1858.8,1857.7,1.30388649]
[1772270070720,1.34488138,1858.9,1857.7,1.30388649]
[1772270070928,3.08186732,1859.0,1857.7,1.30388649]
[1772270071336,4.40790279,1859.0,1857.7,1.30388649]
[1772270071544,4.40790279,1859.0,1857.9,1.30388649]
[1772270072333,2.67090279,1859.0,1857.9,1.30388649]
[1772270072532,1.737,1858.9,1857.9,1.30388649]
[1772270072754,2.67090279,1859.0,1857.9,1.30388649]
[1772270073059,4.40784622,1859.0,1857.9,1.30388649]
[1772270073216,1.32603547,1859.0,1857.9,1.30388649]
[1772270073849,1.32603547,1859.0,1858.1,1.30388649]
[1772270074756,4.40582292,1859.1,1858.1,1.30388649]
[1772270075048,1.32603547,1859.0,1858.0,1.34553283]
[1772270075251,1.735,1858.9,1858.0,2.64941932]
[1772270075952,1.34495373,1858.8,1858.0,2.64941932]
[1772270076155,3.07993516,1858.9,1858.0,2.64941932]
[1772270076850,2.67097063,1858.9,1858.0,2.64941932]
[1772270077750,2.67097063,1858.9,1857.8,1.34672843]
[1772270077751,1.32603547,1858.8,1857.8,1.34672843]
[1772270077972,2.67106156,1858.7,1857.8,1.34672843]
[1772270078329,4.40306156,1858.7,1857.8,1.34672843]
[1772270079272,4.40306156,1858.7,1857.8,0.0011]
[1772270079273,3.05703547,1858.6,1857.8,0.0011]
[1772270079726,1.32603547,1858.6,1857.8,0.0011]
[1772270079928,1.732,1858.5,1857.8,0.0011]
[1772270080156,3.07720455,1858.5,1857.8,0.0011]
[1772270080454,3.07620455,1858.5,1857.8,0.0011]
[1772270080652,1.26815786,1858.4,1857.8,0.0011]
[1772270080958,2.61320957,1858.7,1857.8,1.29325134]
[1772270081754,4.34320957,1858.7,1857.8,1.29325134]
[1772270081955,1.3450004,1858.8,1857.9,3.7697271]
[1772270082154,1.73,1858.8,1858.1,1.34546041]
[1772270083054,2.60455472,1858.9,1858.1,5.11518751]
[1772270083234,1.25967334,1858.8,1858.1,1.34546041]
[1772270084161,1.34502609,1858.7,1857.8,5.38376188]
[1772270084340,2.60467788,1858.8,1857.8,5.38376188]
[1772270085461,2.60467788,1858.8,1857.8,6.6893289]
[1772270085641,1.25967334,1858.7,1857.8,6.6893289]
[1772270085992,1.25967334,1858.7,1857.9,0.0011]
[1772270086659,1.25967334,1858.7,1857.7,5.11650478]
[1772270086660,1.25967334,1858.4,1857.7,0.0011]
[1772270086965,1.25967334,1858.3,1857.7,0.0011]
[1772270087133,2.98667334,1858.3,1857.7,1.34683146]
[1772270087334,1.25967334,1858.3,1857.7,1.34683146]
[1772270087755,1.727,1858.5,1857.7,1.34683146]
[1772270088134,2.98667334,1858.5,1857.7,1.34683146]
[1772270088763,1.34524321,1858.4,1857.7,1.34683146]
[1772270090261,8.36762525,1858.5,1857.8,3.7697271]
[1772270090262,1.25967334,1858.5,1857.8,3.7697271]
[1772270090769,1.725,1858.7,1858.0,3.7697271]
[1772270091268,1.725,1858.7,1857.9,2.65117227]
[1772270091269,2.60469066,1858.8,1857.9,2.65117227]
[1772270091633,1.25967334,1858.7,1857.9,1.30556702]
[1772270091853,1.25967334,1858.7,1857.8,1.34563128]
[1772270092663,2.98367334,1858.7,1857.8,1.34563128]
[1772270092837,2.6047718,1858.6,1857.8,1.34563128]
[1772270093162,2.6047718,1858.6,1857.8,6.4209254]
[1772270093483,1.25967334,1858.6,1857.8,6.4209254]
[1772270094435,1.25967334,1858.6,1857.8,2.6511983]
[1772270094636,1.25967334,1858.6,1857.8,1.34563128]
[1772270095264,2.60482972,1858.6,1857.8,1.34563128]
[1772270095565,2.60482972,1858.6,1857.8,2.6511983]
[1772270096566,4.32673391,1858.7,1857.9,1.30556702]
[1772270096763,1.25967334,1858.6,1857.9,1.30556702]
[1772270097456,4.32455472,1858.9,1858.0,6.42082695]
[1772270097776,1.25967334,1858.8,1858.0,2.65109985]
[1772270097976,1.25967334,1858.8,1858.0,1.34553283]
[1772270098771,0.001,1858.5,1858.0,1.34553283]
[1772270099381,1.26067334,1858.5,1857.8,0.0011]
[1772270100742,1.25967334,1858.3,1857.5,0.0011]
[1772270101248,1.25967334,1858.1,1857.5,0.0011]
[1772270101457,1.25967334,1857.9,1857.5,0.0011]
[1772270101970,1.25967334,1857.8,1857.5,0.0011]
[1772270102176,1.25967334,1857.8,1856.6,1.3465132]
[1772270102177,1.25967334,1857.5,1856.6,1.3465132]
[1772270102358,2.97667334,1857.8,1857.0,5.07529412]
[1772270102686,1.25967334,1857.7,1856.7,0.0011]
[1772270102972,1.25967334,1857.6,1856.7,0.0011]
[1772270103876,1.25967334,1857.4,1856.7,0.0011]
[1772270104240,7.09979742,1857.8,1856.5,5.3863293]
[1772270104241,1.25967334,1858.0,1857.2,3.7697271]
[1772270104579,3.8362631,1858.5,1857.4,3.7697271]
[1772270104580,2.97667334,1858.3,1857.4,3.7697271]
[1772270104766,1.25967334,1858.3,1857.3,1.30556702]
[1772270104965,1.25967334,1858.3,1857.4,0.0011]
[1772270105147,1.25967334,1858.1,1857.4,0.0011]
[1772270105350,3.7697271,1858.3,1857.4,0.0011]
[1772270105351,1.25967334,1857.9,1857.4,0.0011]
[1772270105948,2.60528898,1857.9,1857.4,0.0011]
[1772270106272,1.25967334,1857.7,1856.7,5.385729]
[1772270106680,1.25967334,1857.5,1856.8,0.0011]
[1772270106887,1.72,1857.6,1856.8,0.0011]
[1772270107074,2.97967334,1857.6,1856.8,0.0011]
[1772270107761,1.34573919,1857.8,1856.8,5.07639412]
[1772270108084,5.25978249,1857.9,1857.0,3.7697271]
[1772270108293,5.25978249,1857.9,1856.8,5.07639412]
[1772270108453,1.25967334,1857.8,1856.8,1.30666702]
[1772270108862,1.25967334,1857.8,1856.8,0.0011]
[1772270109282,1.25967334,1857.5,1856.8,0.0011]
[1772270109949,1.25967334,1857.4,1856.8,0.0011]
[1772270110181,2.97967334,1857.4,1856.8,0.0011]
[1772270110379,1.72,1857.6,1856.8,3.7708271]
[1772270110592,1.72,1857.6,1856.8,0.0011]
[1772270111296,4.0001378,1857.9,1857.0,3.7697271]
[1772270111453,1.719,1857.8,1857.0,3.7697271]
[1772270111962,3.06470039,1857.8,1857.1,1.34618491]
[1772270112391,8.036968,1857.9,1857.2,0.0011]
[1772270112392,2.65447764,1857.9,1857.2,0.0011]
[1772270112549,1.719,1858.1,1857.2,5.05053523]
[1772270112759,3.021189,1858.1,1857.2,1.28080813]
[1772270112959,5.0719161,1858.0,1857.2,0.0011]
[1772270113185,1.302189,1858.0,1857.2,0.0011]
[1772270114076,2.64779425,1857.9,1857.2,0.0011]
[1772270114279,1.302189,1857.8,1857.2,0.0011]
[1772270114578,1.718,1857.8,1857.2,0.0011]
[1772270115455,1.302189,1857.7,1857.2,0.0011]
[1772270115889,0.122194,1857.3,1856.9,0.0011]
[1772270116185,7.10092724,1857.8,1856.9,0.0011]
[1772270116186,1.717,1857.8,1856.9,1.28080813]
[1772270116753,4.36486949,1857.8,1856.9,1.28080813]
[1772270116958,1.302189,1857.7,1856.9,0.0011]
[1772270117789,3.018189,1857.7,1856.9,0.0011]
[1772270117994,1.34582256,1857.6,1856.9,0.0011]
[1772270118171,4.3639946,1857.7,1856.9,0.0011]
[1772270118484,1.302189,1857.6,1856.9,0.0011]
[1772270118994,3.0618056,1857.7,1856.9,0.0011]
[1772270118995,1.716,1857.7,1856.9,1.28080813]
[1772270119595,3.06176112,1857.7,1856.9,1.28080813]
[1772270119987,1.34576112,1857.7,1856.9,0.0011]
[1772270120194,1.34572005,1857.8,1856.9,1.28080813]
[1772270120506,3.016189,1857.7,1856.9,1.28080813]
[1772270120678,1.302189,1857.7,1856.9,1.28080813]
[1772270120867,3.016189,1857.7,1856.9,1.28080813]
[1772270121297,1.302189,1857.7,1856.9,1.28080813]
[1772270122088,1.302189,1857.7,1857.0,1.3462574]
[1772270122089,2.64800393,1857.7,1857.0,1.3462574]
[1772270122274,1.712,1857.9,1857.2,5.04943523]
[1772270122599,1.712,1857.9,1857.2,1.27970813]
[1772270122964,3.014189,1857.9,1857.0,5.1159845]
[1772270123274,3.014189,1857.9,1857.0,1.3462574]
[1772270123473,1.302189,1857.8,1857.0,1.3462574]
[1772270123690,1.302189,1857.8,1857.0,1.3473574]
[1772270124079,1.34575012,1857.7,1857.0,1.3473574]
[1772270124998,1.302189,1857.8,1857.0,1.3473574]
[1772270125199,3.013189,1857.8,1857.0,6.39679263]
[1772270125499,4.35788009,1857.8,1857.0,2.62706553]
[1772270125709,1.302189,1857.7,1857.0,1.3473574]
[1772270126369,2.64798524,1857.7,1857.0,0.0011]
[1772270126803,1.302189,1857.6,1857.0,0.0011]
[1772270128117,3.05479624,1857.7,1857.0,1.28080813]
[1772270128416,3.05479624,1857.7,1857.0,2.62701063]
[1772270129186,1.708,1857.7,1857.0,6.39673773]
[1772270129506,1.708,1857.7,1857.0,2.62701063]
[1772270130599,3.05379874,1857.7,1857.0,2.62701063]
[1772270131002,4.35598774,1857.7,1857.0,2.62701063]
[1772270131403,4.35498774,1857.7,1857.0,2.62701063]
[1772270131598,1.302189,1857.6,1857.0,0.0011]
[1772270131915,1.302189,1857.6,1857.0,1.34735367]
[1772270132223,1.302189,1857.6,1857.0,0.0011]
[1772270132430,1.302189,1857.6,1857.0,1.34735128]
[1772270132595,2.64807011,1857.6,1857.0,0.0011]
[1772270134005,1.302189,1857.5,1857.0,0.0011]
[1772270134722,4.35515648,1857.4,1857.0,0.0011]
[1772270135095,2.64815648,1857.4,1857.0,0.0011]
[1772270135295,1.708,1857.3,1857.0,0.0011]
[1772270135924,3.010189,1857.3,1857.0,0.0011]
[1772270136711,3.010189,1857.3,1856.9,0.0011]
[1772270136712,2.64835825,1857.2,1856.9,0.0011]
[1772270136916,1.302189,1857.1,1856.9,0.0011]
[1772270137227,1.709,1857.1,1856.9,0.0011]
[1772270137521,3.011189,1857.1,1856.9,0.0011]
[1772270137728,3.011189,1857.1,1857.0,0.0011]
[1772270138117,3.011189,1857.1,1856.9,0.0011]
[1772270138314,1.302189,1857.0,1856.8,0.0011]
[1772270138511,1.709,1857.1,1856.8,0.0011]
[1772270138715,4.35744429,1857.1,1856.8,0.0011]
[1772270140613,3.05525529,1857.1,1856.8,0.0011]
[1772270141909,1.709,1857.1,1856.8,0.0011]
[1772270142207,1.713,1857.0,1856.8,0.0011]
[1772270143335,9.578352,1857.0,1856.1,1.17208894]
[1772270143514,4.29255666,1857.0,1856.2,1.17208894]
[1772270144407,2.57955666,1857.0,1856.2,1.17208894]
[1772270144709,1.713,1856.9,1856.2,1.17208894]
[1772270144909,1.713,1856.8,1856.4,1.17208894]
[1772270146075,1.713,1856.8,1856.1,1.17208894]
[1772270146839,1.713,1856.8,1856.2,2.51892656]
[1772270147011,1.23323865,1857.0,1856.2,2.51892656]
[1772270147215,1.712,1856.8,1856.2,2.51892656]
[1772270147723,1.711,1857.0,1856.3,1.17208894]
[1772270148912,1.711,1857.0,1856.4,2.51878146]
[1772270149235,3.05726082,1857.0,1856.4,2.51878146]
[1772270149434,1.711,1857.0,1856.4,2.51878146]
[1772270149734,1.482,1857.0,1856.4,2.51878146]
[1772270150134,1.482,1857.0,1856.5,1.17208894]
[1772270150920,1.23323865,1857.0,1856.2,1.17318894]
[1772270151506,1.23323865,1857.2,1856.2,1.17318894]
[1772270152946,1.23323865,1857.0,1856.3,1.34676507]
[1772270153238,1.23323865,1857.0,1856.4,1.17208894]
[1772270154225,1.23323865,1857.0,1856.2,2.51998399]
[1772270155445,1.3463299,1856.9,1856.2,2.51998399]
[1772270156138,2.57956855,1856.9,1856.2,2.51998399]
[1772270157249,7.09231961,1857.1,1856.2,2.51998399]
[1772270157250,1.23323865,1857.2,1856.3,1.17208894]
[1772270157545,4.28436511,1857.2,1856.5,1.17208894]
[1772270159121,2.57936511,1857.2,1856.5,1.17208894]
[1772270159328,4.28436511,1857.2,1856.5,1.17208894]
[1772270159654,4.28435832,1857.2,1856.6,2.51863639]
[1772270160014,1.23323865,1857.1,1856.6,1.34654745]
[1772270160216,1.23323865,1857.1,1856.4,1.34666274]
[1772270160728,1.23323865,1857.1,1856.4,2.51875168]
[1772270161348,1.34709393,1857.3,1856.5,1.17208894]
[1772270161650,1.704,1857.2,1856.7,1.17208894]
[1772270161951,2.93723865,1857.2,1856.6,1.34654745]
[1772270162866,0.001,1857.3,1856.7,1.17208894]
[1772270163040,1.23323865,1857.8,1856.6,1.34654745]
[1772270163041,0.001,1857.0,1856.9,1.17208894]
[1772270163228,1.703,1857.6,1856.9,1.17208894]
[1772270163625,1.703,1857.6,1857.1,1.17208894]
[1772270164438,1.703,1857.8,1857.1,1.17208894]
[1772270165568,1.23323865,1857.9,1857.2,2.51820136]
[1772270165857,1.702,1857.9,1857.3,1.17208894]
[1772270166442,2.57870063,1858.1,1857.3,1.17208894]
[1772270166658,1.23323865,1858.0,1857.3,0.06782479]
[1772270168044,2.57878942,1858.0,1857.4,1.34596748]
[1772270168245,1.23323865,1858.0,1857.4,1.34596748]
[1772270169762,1.23323865,1858.3,1857.5,0.22132932]
[1772270169964,1.23323865,1858.5,1857.6,1.34582256]
[1772270170137,1.23323865,1858.5,1857.6,1.56715188]
[1772270170761,1.23323865,1858.5,1857.6,1.34582256]
[1772270171145,1.23323865,1858.5,1857.6,1.56595402]
[1772270171342,1.2687453,1858.4,1857.7,0.22013146]
[1772270171569,2.9687453,1858.4,1857.7,0.22013146]
[1772270172663,2.9687453,1858.4,1857.8,1.34567768]
[1772270172664,1.34524561,1858.4,1857.8,1.34567768]
[1772270172864,1.2687453,1858.3,1857.4,5.38377247]
[1772270173036,1.2687453,1858.3,1857.5,0.21625751]
[1772270174537,1.2687453,1858.2,1857.2,0.21431223]
[1772270174766,1.2687453,1858.2,1857.1,1.34613517]
[1772270174965,1.2687453,1858.0,1857.1,1.34723517]
[1772270175167,1.34531834,1858.3,1856.8,7.00495287]
[1772270175168,1.2687453,1857.7,1856.8,1.34635574]
[1772270175547,1.2687453,1857.7,1856.6,5.59851909]
[1772270175548,1.2687453,1857.7,1857.0,0.0011]
[1772270175752,2.6877514,1857.8,1856.6,1.34649225]
[1772270175753,1.2687453,1857.5,1856.6,1.34649225]
[1772270175955,1.2687453,1857.3,1856.8,0.0011]
[1772270176370,1.2687453,1857.3,1856.5,1.34770885]
[1772270176569,1.2687453,1857.1,1856.5,0.0011]
[1772270178668,1.2687453,1856.9,1856.5,0.0011]
[1772270178969,6.63205274,1857.0,1856.5,0.0011]
[1772270178970,1.2687453,1856.7,1856.5,0.0011]
[1772270179149,1.2687453,1856.7,1856.2,0.0011]
[1772270179577,1.2687453,1856.6,1856.0,0.0011]
[1772270180368,1.2687453,1856.4,1856.0,0.0011]
[1772270180544,1.2687453,1856.2,1856.0,0.0011]
[1772270180943,2.61565548,1856.1,1856.0,0.0011]
[1772270181146,1.2687453,1856.0,1855.3,0.0011]
[1772270181373,1.2687453,1856.2,1855.4,0.2019973]
[1772270181574,1.2687453,1856.2,1855.3,0.0011]
[1772270181875,1.2687453,1856.2,1855.3,0.20115425]
[1772270182275,1.2687453,1856.2,1855.3,0.0011]
[1772270182950,1.2687453,1856.0,1855.3,0.0011]
[1772270183152,1.2687453,1855.8,1855.3,0.0011]
[1772270184170,1.2687453,1856.0,1855.3,0.19732924]
[1772270184752,1.696,1856.2,1855.4,5.48202458]
[1772270184947,1.696,1856.2,1855.3,0.0011]
[1772270184948,1.2687453,1856.1,1855.3,0.0011]
[1772270185761,2.9647453,1856.1,1855.3,0.0011]
[1772270185952,1.2687453,1856.1,1855.3,0.19341239]
[1772270186858,1.259,1856.3,1855.5,0.19035123]
[1772270187058,1.259,1856.3,1855.6,1.34727311]
[1772270187262,1.259,1856.3,1855.6,1.53762434]
[1772270187574,1.2687453,1856.4,1855.6,1.53762434]
[1772270187777,1.2687453,1856.3,1855.6,1.34727311]
[1772270190682,2.61551752,1856.3,1855.6,1.34727311]
[1772270190976,1.2687453,1856.3,1855.6,1.34727311]
[1772270191159,1.2687453,1856.3,1855.6,1.52981541]
[1772270191575,1.2697453,1856.5,1855.6,1.52981541]
[1772270191878,1.2687453,1856.4,1855.6,1.52981541]
[1772270192459,1.2687453,1856.4,1855.7,0.18018464]
[1772270192870,1.2697453,1856.5,1855.6,1.52509539]
[1772270193177,1.2687453,1856.4,1855.6,1.52509539]
[1772270193351,1.2687453,1856.3,1855.5,1.34728885]
[1772270193555,1.2687453,1856.3,1855.5,1.52511113]
[1772270194558,1.2687453,1856.3,1855.5,1.52275368]
[1772270195074,1.2687453,1856.3,1855.6,0.17310199]
[1772270195276,1.2687453,1856.3,1855.7,1.34720051]
[1772270196388,2.61551303,1856.3,1855.7,1.34720051]
[1772270196580,1.2687453,1856.2,1855.7,1.34720051]
[1772270197365,1.2687453,1856.2,1855.5,1.51572443]
[1772270198615,2.9577453,1856.4,1856.3,4.2244856]
[1772270198766,4.30443782,1856.4,1855.5,1.51572443]
[1772270199098,1.2687453,1856.3,1855.5,2.50719983]
[1772270199396,2.61640246,1856.5,1855.7,1.15985411]
[1772270199562,1.2687453,1856.4,1855.7,1.15985411]
[1772270199890,0.001,1856.3,1855.7,1.15985411]
[1772270200289,1.2697453,1856.3,1855.7,1.15985411]
[1772270200458,1.2697453,1856.3,1855.6,0.0011]
[1772270201483,1.2697453,1856.3,1855.6,1.29068668]
[1772270201789,0.001,1856.3,1855.7,1.28958668]
[1772270202869,1.34777126,1856.3,1855.7,1.28958668]
[1772270203072,2.61423574,1856.3,1855.7,1.28958668]
[1772270203277,1.26646448,1856.2,1855.6,0.0011]
[1772270203675,1.26646448,1856.2,1855.6,1.28777203]
[1772270205866,1.26646448,1856.2,1855.7,1.34720051]
[1772270211266,1.26646448,1856.2,1855.7,2.63387254]
[1772270211801,1.26646448,1856.2,1855.8,0.0011]
[1772270211978,1.26746448,1856.2,1855.8,0.0011]
[1772270214002,1.26646448,1856.1,1855.6,0.0011]
[1772270214292,1.26646448,1856.1,1855.6,1.34836748]
[1772270214465,1.26646448,1856.1,1855.6,0.0011]
[1772270215771,2.61338116,1856.1,1855.6,0.0011]
[1772270218089,1.26646448,1856.0,1855.6,0.0011]
[1772270221145,1.26646448,1855.9,1855.2,1.8361]
[1772270221298,1.26646448,1855.9,1855.1,0.0011]
[1772270221299,1.26646448,1855.7,1855.1,0.0011]
[1772270221501,1.26646448,1855.5,1855.1,0.0011]
[1772270221808,1.26646448,1855.5,1855.0,0.0011]
[1772270222408,1.26646448,1855.3,1855.0,0.0011]
[1772270222781,1.26646448,1855.7,1855.0,1.34879266]
[1772270222986,1.26646448,1855.5,1855.0,0.0011]
[1772270224223,1.26646448,1855.5,1854.3,6.67932343]
[1772270224224,1.26646448,1855.5,1854.5,5.39224069]
[1772270224784,1.26646448,1855.4,1854.5,5.39224069]
[1772270224990,1.26646448,1855.2,1854.5,5.39224069]
[1772270225190,1.34749097,1855.3,1854.5,5.39224069]
[1772270225191,1.26646448,1855.3,1854.5,10.45791281]
[1772270225514,1.26646448,1855.3,1854.6,1.28667203]
[1772270225817,1.682,1855.2,1854.6,1.28667203]
[1772270226405,2.94846448,1855.3,1855.0,0.0011]
[1772270226813,1.26646448,1855.2,1855.0,0.0011]
[1772270227413,2.61404415,1855.2,1855.0,0.0011]
[1772270228489,1.26646448,1855.1,1855.0,0.0011]
[1772270228915,1.26646448,1855.1,1854.5,1.34802402]
[1772270229686,1.26646448,1855.1,1854.5,2.63469605]
[1772270229910,1.683,1855.2,1854.6,1.28667203]
[1772270230114,2.94946448,1855.3,1854.6,1.28667203]
[1772270230694,5.38923386,1855.6,1854.8,1.36557872]
[1772270230695,1.34066302,1855.6,1854.8,1.36557872]
[1772270233227,1.34066302,1855.5,1854.9,1.34778155]
[1772270233405,1.683,1855.7,1855.0,1.36557872]
[1772270233406,1.34066302,1855.7,1855.0,1.36557872]
[1772270233607,1.34066302,1855.6,1855.0,1.36557872]
[1772270233807,1.34066302,1855.6,1854.7,1.36557872]
[1772270234130,1.34066302,1855.5,1854.7,1.34786858]
[1772270235514,1.34066302,1855.9,1855.2,1.36557872]
[1772270236604,1.68,1856.1,1855.4,1.36557872]
[1772270237200,1.34066302,1856.1,1855.4,1.36557872]
[1772270237512,4.36757676,1856.1,1855.5,1.34734572]
[1772270237718,3.02066302,1856.1,1855.5,1.34734572]
[1772270238130,1.34066302,1856.1,1855.5,1.34734572]
[1772270238327,3.02066302,1856.1,1855.5,1.34734572]
[1772270238531,0.001,1855.8,1855.5,1.34734572]
[1772270239025,0.001,1855.8,1855.5,2.71292444]
[1772270240831,3.02686508,1856.2,1855.5,2.71292444]
[1772270240832,0.001,1856.2,1855.6,1.36557872]
[1772270241023,1.34066302,1856.1,1855.5,1.34734572]
[1772270242515,1.34066302,1856.0,1855.5,1.34734572]
[1772270243212,2.68852972,1856.2,1855.5,2.71292444]
[1772270243398,4.36552972,1856.2,1855.5,2.71292444]
[1772270243826,1.34066302,1856.1,1855.5,2.71292444]
[1772270244334,0.001,1856.3,1855.8,1.36557872]
[1772270244632,0.001,1856.3,1855.5,6.95934581]
[1772270244633,1.34166302,1856.3,1855.5,6.95934581]
[1772270244838,1.34166302,1856.3,1855.6,1.36557872]
[1772270244839,0.001,1856.3,1855.6,1.36557872]
[1772270245035,0.001,1856.3,1855.8,1.36557872]
[1772270246211,0.001,1856.3,1855.9,1.34705533]
[1772270246416,0.001,1856.3,1855.9,2.71263405]
[1772270250211,0.001,1856.3,1856.0,1.36557872]
[1772270250641,0.001,1856.2,1856.1,1.34691018]
[1772270250840,0.001,1856.2,1856.0,1.34693617]
[1772270251539,0.001,1856.2,1855.5,1.36557872]
[1772270251540,1.34166302,1856.2,1855.5,1.36557872]
[1772270251731,1.34166302,1856.2,1855.5,1.34730108]
[1772270253043,1.34066302,1856.0,1855.4,5.38951258]
[1772270253416,1.34066302,1856.0,1855.5,3.77900009]
[1772270253614,1.34166302,1856.2,1855.5,3.77900009]
[1772270253835,1.34066302,1856.1,1855.5,3.77900009]
[1772270254044,1.34066302,1856.1,1855.4,5.38951258]
[1772270254547,0.001,1856.2,1855.7,1.36557872]
[1772270254714,0.001,1856.2,1855.9,3.77900009]
[1772270254916,0.001,1856.2,1856.0,1.34698275]
[1772270255644,0.001,1856.2,1855.6,1.34727311]
[1772270255848,0.001,1856.2,1855.6,2.71285183]
[1772270256326,1.34166302,1856.2,1855.6,1.34727311]
[1772270256963,0.001,1856.2,1855.7,3.77900009]
[1772270258545,0.001,1856.2,1855.9,3.77900009]
[1772270259049,0.001,1856.2,1856.0,2.71256147]
[1772270259259,0.001,1856.5,1856.1,1.36557872]
[1772270261143,0.001,1856.5,1855.9,7.22893103]
[1772270261144,1.36994032,1856.5,1855.9,5.38793103]
[1772270261332,1.36994032,1856.5,1855.9,6.65079372]
[1772270262050,1.36994032,1856.5,1856.0,0.0011]
[1772270262232,0.001,1856.1,1856.0,1.26396269]
[1772270262437,0.001,1856.5,1856.1,1.37345942]
[1772270262636,1.36894032,1856.8,1856.1,1.37345942]
[1772270263359,1.29674015,1857.0,1856.2,4.56529704]
[1772270265681,1.29674015,1857.0,1856.4,5.28696241]
[1772270267845,1.29674015,1857.0,1856.5,1.34661998]
[1772270269054,0.065536,1857.5,1856.7,5.28696241]
[1772270269234,1.29674015,1857.6,1857.0,5.28696241]
[1772270269428,1.29674015,1857.6,1857.0,6.66042183]
[1772270270141,1.29674015,1858.0,1857.1,2.71964433]
[1772270271161,1.29674015,1857.9,1857.1,2.71964433]
[1772270272263,1.3456128,1857.9,1857.1,2.71964433]
[1772270272449,1.29674015,1857.8,1857.1,2.71964433]
[1772270272757,1.29674015,1857.8,1857.1,1.34618491]
[1772270274461,1.29674015,1857.7,1857.1,1.34618491]
[1772270274669,1.29674015,1857.7,1857.0,2.71966896]
[1772270275038,1.29674015,1857.7,1857.1,0.0011]
[1772270275360,1.29774015,1857.7,1857.1,1.37455942]
[1772270275562,1.29674015,1858.1,1857.5,6.66042183]
[1772270275761,1.29674015,1858.1,1857.5,5.28696241]
[1772270275967,1.29674015,1858.6,1857.6,1.37345942]
[1772270276148,1.29674015,1858.5,1857.6,1.37345942]
[1772270276468,1.29674015,1858.5,1857.8,1.37345942]
[1772270277570,1.29674015,1858.8,1857.9,1.37345942]
[1772270277744,1.29674015,1858.8,1857.7,1.34575012]
[1772270277948,1.29674015,1858.8,1857.7,2.71920954]
[1772270278358,1.29674015,1858.6,1857.8,1.37345942]
[1772270280753,1.29674015,1858.5,1857.7,1.34569944]
[1772270281567,1.29674015,1858.5,1857.5,1.34583903]
[1772270281972,1.29674015,1858.5,1857.5,2.71929845]
[1772270282745,1.29674015,1858.3,1857.5,2.71929845]
[1772270282940,1.29674015,1858.3,1857.5,1.34583903]
[1772270283174,1.652,1858.4,1857.7,1.37345942]
[1772270283574,1.652,1858.4,1857.5,2.71929845]
[1772270283575,1.29674015,1858.3,1857.5,2.71929845]
[1772270284073,1.29674015,1858.3,1857.6,1.37345942]